bitfinex/quotes_ETHUSD_20250519
["timestamp","ask_amount","ask_price","bid_price","bid_amount"]
[1747642848870,4.13549989,2418.1,2417.6,4.13622776]
[1747642849084,4.13625652,2417.7,2417.5,0.8022]
[1747642849284,4.13609384,2417.8,2417.7,0.2269032]
[1747642850361,7.8751001,2418.4,2417.7,0.2269032]
[1747642850562,4.13578577,2418.0,2417.7,0.2269032]
[1747642850766,4.13582033,2417.9,2417.8,0.2269032]
[1747642851181,14.14413484,2418.4,2417.8,0.2269032]
[1747642851383,14.20429154,2418.8,2417.8,0.2269032]
[1747642851601,4.13527903,2418.3,2417.8,4.36281324]
[1747642851911,4.1354904,2418.1,2417.8,0.2269032]
[1747642852110,4.1354904,2418.1,2417.5,0.8022]
[1747642852111,3.74013484,2418.7,2417.9,0.2269032]
[1747642852303,4.13514765,2418.3,2417.9,0.2269032]
[1747642852486,4.13505411,2418.4,2417.9,4.36270868]
[1747642852691,4.13505411,2418.4,2418.0,0.43627087]
[1747642852892,4.13515216,2418.3,2417.9,0.2269032]
[1747642853102,4.13540647,2418.2,2418.0,0.2269032]
[1747642853610,14.34811054,2418.9,2418.0,0.2269032]
[1747642853810,4.13445707,2418.7,2418.0,0.2269032]
[1747642854018,4.13505583,2418.4,2418.0,0.2269032]
[1747642854202,4.13504724,2418.4,2418.0,1.07675366]
[1747642854408,4.13504724,2418.4,2418.1,0.2269032]
[1747642854987,4.13517461,2418.3,2418.1,0.2269032]
[1747642855183,4.13517461,2418.3,2418.2,0.2269032]
[1747642856900,4.13590193,2417.9,2417.7,0.28646323]
[1747642857598,4.13513625,2418.3,2417.7,0.28646323]
[1747642857795,4.13506177,2418.4,2417.8,4.36500949]
[1747642857983,4.52703484,2418.7,2417.8,0.22904008]
[1747642858186,4.13481201,2418.5,2418.0,4.1355992]
[1747642858621,4.13503745,2418.4,2417.9,4.1357862]
[1747642858921,4.13522596,2418.3,2417.8,10.63104008]
[1747642859086,4.13522596,2418.3,2417.8,17.28729319]
[1747642859280,4.13479429,2418.5,2417.8,13.15131606]
[1747642859520,4.13524923,2418.3,2418.1,0.7831]
[1747642859723,4.13500803,2418.4,2418.1,0.7831]
[1747642859924,7.87462592,2418.7,2417.9,0.51550331]
[1747642859925,3.74013484,2418.7,2417.9,0.51550331]
[1747642860102,4.13562259,2418.1,2417.9,0.51550331]
[1747642860297,4.13514445,2418.3,2417.9,0.51550331]
[1747642860626,4.13479429,2418.5,2417.9,0.51550331]
[1747642860627,4.13506138,2418.4,2417.9,4.65130271]
[1747642860829,3.74013484,2418.7,2417.9,0.51550331]
[1747642860993,4.13542651,2418.2,2417.9,0.51550331]
[1747642861192,4.13500788,2418.4,2418.0,0.22904008]
[1747642861688,4.13545637,2418.2,2418.0,0.22904008]
[1747642861925,7.8756131,2418.1,2418.0,0.22904008]
[1747642862120,7.8756131,2418.1,2417.7,0.37565859]
[1747642862121,4.13586014,2417.9,2417.7,0.37565859]
[1747642862446,18.77472623,2417.8,2417.7,0.32565859]
[1747642862738,4.13701803,2417.2,2417.1,0.05]
[1747642865233,8.67485287,2417.2,2417.1,0.05]
[1747642865601,7.87715287,2417.2,2417.1,0.05]
[1747642866019,15.87715287,2417.2,2417.1,0.05]
[1747642867040,26.73375287,2417.2,2417.1,0.05]
[1747642867251,4.13873023,2416.2,2416.1,0.05]
[1747642867536,7.87886507,2416.2,2416.1,0.05]
[1747642868942,15.87886507,2416.2,2416.1,0.05]
[1747642870369,4.13805468,2416.6,2416.1,0.05]
[1747642870370,0.7599,2416.8,2416.1,0.05]
[1747642870629,4.13873023,2416.2,2416.1,0.05]
[1747642871187,5.34047617,2416.2,2416.1,0.05]
[1747642871409,6.14437617,2416.2,2416.1,0.05]
[1747642872015,24.24237617,2416.2,2416.1,0.05]
[1747642872211,26.21437617,2416.2,2416.1,0.05]
[1747642873027,6.14437617,2416.2,2416.1,0.05]
[1747642873230,4.1384987,2416.4,2416.1,0.05]
[1747642873431,0.7821,2416.6,2416.1,0.05]
[1747642873432,4.13873023,2416.2,2416.1,0.05]
[1747642874341,4.13866225,2416.3,2416.1,0.05]
[1747642875324,4.13758019,2416.9,2416.3,4.13839423]
[1747642875525,4.13789647,2416.7,2416.2,0.7636]
[1747642875842,4.13873023,2416.2,2416.1,0.05]
[1747642876740,7.87886507,2416.2,2416.1,0.05]
[1747642876942,17.80486507,2416.2,2416.1,0.05]
[1747642877143,16.33424263,2416.2,2416.1,0.05]
[1747642877354,4.13865213,2416.3,2416.1,0.05]
[1747642877511,4.13873023,2416.2,2416.1,0.05]
[1747642877711,4.13844839,2416.4,2416.1,0.05]
[1747642877912,4.13762471,2416.9,2416.2,0.8007]
[1747642878119,4.1375162,2417.0,2416.5,4.1381938]
[1747642878433,4.13746759,2417.0,2416.5,4.1381829]
[1747642878809,3.74013484,2417.3,2416.3,10.1]
[1747642879152,4.13832024,2416.5,2416.3,10.1]
[1747642879350,4.13841037,2416.4,2416.2,10.9007]
[1747642879521,4.54053484,2416.7,2416.1,0.05]
[1747642879728,10.07,2416.9,2416.2,4.13860585]
[1747642879926,4.13780629,2416.8,2416.3,4.13855223]
[1747642880124,4.13743559,2417.0,2416.4,10.1]
[1747642880311,4.13669527,2417.4,2416.5,4.13810837]
[1747642880645,4.13739772,2417.0,2416.5,4.13810837]
[1747642880949,4.13727154,2417.1,2416.5,4.13805366]
[1747642881146,4.13743891,2417.0,2416.5,4.13805366]
[1747642881345,4.13728103,2417.1,2416.5,4.13805366]
[1747642881551,4.13736044,2417.0,2416.5,6.06690723]
[1747642881756,4.91941813,2417.5,2416.6,4.13792432]
[1747642881919,14.82741813,2417.5,2416.6,4.13792432]
[1747642882119,3.74013484,2417.6,2416.8,0.8306]
[1747642882372,4.13591403,2417.9,2417.3,4.13668953]
[1747642882514,4.13640606,2417.6,2417.4,10.099]
[1747642882714,4.1365753,2417.5,2417.3,10.099]
[1747642882969,14.04331318,2418.2,2417.3,10.099]
[1747642882970,3.74013484,2418.3,2417.3,10.099]
[1747642883267,4.13579034,2418.0,2417.5,4.13640151]
[1747642883562,4.1354811,2418.1,2417.6,4.90925556]
[1747642883731,4.58786754,2418.3,2417.6,4.90925556]
[1747642883732,4.19282832,2418.3,2417.6,0.773]
[1747642883937,4.13616246,2417.7,2417.4,10.099]
[1747642884118,4.13616246,2417.7,2417.2,15.02803301]
[1747642884471,4.13547487,2418.2,2417.2,10.8911]
[1747642884667,4.13530725,2418.2,2417.2,10.8911]
[1747642884818,4.13616034,2417.8,2417.2,15.02802552]
[1747642885016,4.13550491,2418.1,2417.3,0.04136168]
[1747642885319,4.13530725,2418.2,2417.2,4.92901933]
[1747642885555,4.13530725,2418.2,2417.2,0.7921]
[1747642885556,4.13564929,2418.0,2417.2,0.7921]
[1747642885770,4.13684689,2417.3,2416.9,10.8901]
[1747642885917,4.13617049,2417.7,2416.2,0.7921]
[1747642885918,4.9026294,2417.5,2416.2,0.7921]
[1747642886118,4.13819695,2416.6,2416.3,10.098]
[1747642886423,4.13844992,2416.4,2416.2,10.8901]
[1747642886768,4.13873023,2416.2,2416.1,0.05]
[1747642887265,0.7661,2416.7,2416.1,0.05]
[1747642887462,4.13833925,2416.5,2416.1,0.05]
[1747642887648,9.926,2416.7,2416.1,0.05]
[1747642887860,4.13873023,2416.2,2416.1,0.05]
[1747642888170,3.74013484,2416.9,2416.1,0.05]
[1747642888469,4.13822044,2416.5,2416.1,0.05]
[1747642888635,4.13770274,2416.8,2416.1,0.05]
[1747642888829,4.13821642,2416.5,2416.1,0.05]
[1747642889155,4.13873023,2416.2,2416.1,0.05]
[1747642889541,4.13825201,2416.5,2416.1,0.05]
[1747642889747,6.77603832,2416.9,2416.1,0.05]
[1747642889967,4.13786377,2416.8,2416.2,0.7988]
[1747642890168,4.13727696,2417.1,2416.2,1.29755914]
[1747642890386,4.13724076,2417.1,2416.3,4.13853936]
[1747642890581,4.13724076,2417.1,2416.6,4.13795541]
[1747642890894,4.13695548,2417.3,2416.7,4.17910066]
[1747642890895,4.13694008,2417.3,2416.7,4.17910066]
[1747642891043,4.13694008,2417.3,2416.9,0.7988]
[1747642891239,3.74013484,2417.5,2416.5,0.7988]
[1747642891575,4.13684689,2417.3,2416.6,10.099]
[1747642891779,4.13727897,2417.1,2416.6,10.099]
[1747642891984,4.13706485,2417.2,2416.6,10.099]
[1747642892144,4.13727569,2417.1,2416.6,4.13794492]
[1747642892346,28.5449,2417.8,2417.0,4.13719977]
[1747642892597,7.77834566,2417.7,2417.1,10.6292]
[1747642892750,4.13605304,2417.8,2417.3,4.13674579]
[1747642892958,4.13617006,2417.7,2417.2,4.13691181]
[1747642893180,4.13605229,2417.8,2417.1,10.6292]
[1747642893379,4.13623654,2417.7,2417.2,4.13694349]
[1747642893557,4.13623654,2417.7,2417.1,14.76637998]
[1747642893558,4.13635678,2417.6,2417.1,14.76637998]
[1747642893746,4.13623654,2417.7,2417.1,10.6292]
[1747642893747,4.13625804,2417.7,2417.1,10.6292]
[1747642893947,4.13659561,2417.5,2417.1,10.6282]
[1747642894586,0.4136258,2417.7,2417.1,14.76532755]
[1747642894887,4.13627502,2417.7,2417.2,4.13699706]
[1747642895239,4.13589399,2417.9,2417.4,4.13664904]
[1747642895482,4.13582033,2417.9,2417.4,4.13664904]
[1747642895790,4.13582033,2417.9,2417.3,0.04136465]
[1747642895791,4.58791498,2418.3,2417.8,4.1359515]
[1747642895996,4.58791498,2418.3,2417.9,0.04135627]
[1747642895997,4.13548393,2418.1,2417.9,0.04135627]
[1747642896177,3.74013484,2418.0,2417.1,9.862]
[1747642896500,3.74013484,2418.0,2417.0,0.7504]
[1747642896703,7.8757914,2418.0,2417.1,4.13710357]
[1747642896907,4.13627295,2417.7,2417.2,4.13700054]
[1747642897106,4.13609601,2417.8,2417.3,4.13670276]
[1747642897303,0.45881774,2418.1,2417.4,9.862]
[1747642897488,4.136421,2417.6,2417.3,9.862]
[1747642897693,3.74013484,2417.7,2417.0,0.7504]
[1747642897873,3.74013484,2417.7,2416.5,0.55]
[1747642897874,4.13749782,2417.0,2416.7,0.7889]
[1747642898204,4.1379171,2416.7,2416.3,1.17049262]
[1747642898409,4.13795331,2416.7,2416.3,1.17049262]
[1747642898610,13.57013484,2417.8,2416.4,4.13836479]
[1747642898820,5.41727698,2418.1,2416.8,0.798]
[1747642898957,5.41727698,2418.1,2417.0,4.13724984]
[1747642898958,4.13657956,2417.5,2417.0,4.13724984]
[1747642899304,4.13625944,2417.7,2417.2,0.7839]
[1747642899305,4.13641094,2417.6,2417.2,0.7839]
[1747642899486,4.13606311,2417.8,2417.3,4.13676629]
[1747642900065,0.45881774,2418.1,2417.4,9.862]
[1747642900261,4.13565624,2418.0,2417.5,4.13638037]
[1747642900563,4.59438818,2418.1,2417.6,4.13629455]
[1747642900794,4.13566065,2418.0,2417.6,4.13629455]
[1747642901107,4.13655006,2417.5,2417.2,0.7839]
[1747642901275,4.13590572,2417.9,2417.4,13.99854511]
[1747642901476,4.13590572,2417.9,2417.5,4.13649717]
[1747642901689,4.59435708,2418.1,2417.6,4.89150234]
[1747642902001,4.13548759,2418.1,2417.6,4.89153213]
[1747642902368,5.13510753,2418.4,2417.8,4.13582426]
[1747642902566,1.0,2418.4,2417.9,4.13580353]
[1747642902765,5.13508738,2418.4,2417.8,4.13589842]
[1747642902967,1.0,2418.4,2418.0,4.13554488]
[1747642903192,5.13499282,2418.4,2418.0,4.13554488]
[1747642903389,1.0,2418.4,2418.0,4.13554488]
[1747642903719,1.0,2418.4,2418.2,4.13525823]
[1747642903896,1.0,2418.4,2418.1,4.89069816]
[1747642904797,1.0,2418.4,2418.2,4.13528713]
[1747642905001,1.0,2418.4,2418.3,4.13513625]
[1747642905515,1.0,2418.4,2418.2,4.17655957]
[1747642905821,1.0,2418.4,2418.2,4.1352119]
[1747642906023,1.0,2418.4,2418.3,4.13513625]
[1747642907638,4.13524077,2418.3,2418.1,0.7553]
[1747642907842,4.13564929,2418.0,2417.4,0.822]
[1747642908020,4.13646866,2417.6,2417.1,14.81917667]
[1747642908184,4.13625999,2417.7,2417.2,4.13700364]
[1747642908484,4.13625999,2417.7,2417.3,4.51841906]
[1747642908686,4.13625999,2417.7,2417.3,0.38159262]
[1747642909147,4.13664084,2417.5,2417.3,0.38159262]
[1747642909302,4.13667576,2417.4,2417.1,0.822]
[1747642909622,4.13660287,2417.5,2417.1,0.822]
[1747642909822,4.13669666,2417.4,2417.1,0.822]
[1747642910387,0.8272266,2417.7,2416.7,18.6723]
[1747642910587,4.13821642,2416.5,2416.1,0.05]
[1747642910796,4.13817391,2416.6,2416.1,0.05]
[1747642911002,4.13821642,2416.5,2416.1,0.05]
[1747642911827,4.13873023,2416.2,2416.1,0.05]
[1747642912190,4.13863104,2416.3,2416.1,0.05]
[1747642912390,20.3351,2416.6,2416.1,0.05]
[1747642912615,4.13873023,2416.2,2416.1,0.05]
[1747642913406,2.82132549,2416.5,2416.1,0.05]
[1747642913407,4.13831272,2416.5,2416.1,0.05]
[1747642913824,4.13810747,2416.6,2416.1,0.05]
[1747642914118,4.13826707,2416.5,2416.1,0.05]
[1747642914324,4.13770274,2416.8,2416.1,0.05]
[1747642914521,4.13873023,2416.2,2416.1,0.05]
[1747642914697,2.36517027,2416.7,2416.1,0.05]
[1747642914903,4.13858259,2416.3,2416.1,0.05]
[1747642915440,4.13871428,2416.3,2416.1,0.05]
[1747642915733,9.861,2416.8,2416.1,0.05]
[1747642916024,4.13787435,2416.7,2416.2,4.13863497]
[1747642916226,4.1380035,2416.7,2416.1,0.05]
[1747642916425,4.13805465,2416.6,2416.1,0.05]
[1747642916649,4.13771613,2416.8,2416.2,4.13871392]
[1747642916650,4.13796297,2416.7,2416.2,4.13871392]
[1747642917314,4.1374867,2417.0,2416.5,4.13813796]
[1747642917530,4.13731092,2417.1,2416.2,1.58497427]
[1747642917835,4.13599549,2417.8,2416.2,1.58497427]
[1747642917836,4.13670031,2417.4,2416.3,4.13855895]
[1747642918019,4.13670031,2417.4,2416.2,5.7236972]
[1747642918020,4.13660941,2417.5,2416.5,0.55]
[1747642918210,4.13674983,2417.4,2416.9,4.13745335]
[1747642918733,0.8272266,2417.7,2417.0,0.7755]
[1747642919037,4.56736144,2417.7,2417.0,0.7755]
[1747642919241,4.13782643,2416.8,2416.6,0.8185]
[1747642919535,3.74013484,2417.1,2416.3,24.42502901]
[1747642919694,4.13788941,2416.7,2416.3,20.2865]
[1747642920099,4.13743132,2417.0,2416.3,24.42500026]
[1747642920329,4.13736036,2417.0,2416.3,20.2865]
[1747642920559,4.13736036,2417.0,2416.1,0.05]
[1747642920796,0.7677,2416.5,2416.1,0.05]
[1747642921027,4.13847179,2416.4,2416.1,0.05]
[1747642921314,4.13812235,2416.6,2416.1,4.18888916]
[1747642921514,10.3503,2416.9,2416.1,0.05]
[1747642921833,4.13772623,2416.8,2416.2,0.8021]
[1747642922036,4.13684689,2417.3,2416.5,4.13821078]
[1747642922198,4.13795269,2416.7,2416.2,4.94078353]
[1747642922398,4.13779864,2416.8,2416.3,4.1384422]
[1747642922627,4.13738575,2417.0,2416.5,4.13811319]
[1747642923213,0.8127,2417.4,2416.3,2.85792709]
[1747642923422,4.13575669,2418.0,2417.5,4.13641154]
[1747642923697,0.758,2418.2,2417.8,4.13598141]
[1747642924040,1.0,2418.4,2417.6,4.17754024]
[1747642924351,1.0,2418.4,2417.5,0.8328]
[1747642924352,1.0,2418.4,2417.5,4.96929565]
[1747642924645,4.1355146,2418.1,2417.5,0.8328]
[1747642924800,4.1356548,2418.0,2417.5,24.14122897]
[1747642925309,4.1358547,2417.9,2417.5,0.8328]
[1747642925512,0.8305,2418.2,2417.2,0.7985]
[1747642925820,4.59263674,2418.1,2417.2,0.7985]
[1747642926014,4.13537147,2418.2,2417.7,4.13614428]
[1747642926207,4.13516974,2418.3,2417.8,0.7985]
[1747642926420,4.13549815,2418.1,2417.8,0.7985]
[1747642926736,4.13530725,2418.2,2417.2,10.3905]
[1747642926963,4.57063484,2418.3,2417.3,4.13679351]
[1747642927137,4.13533383,2418.2,2417.3,0.04136268]
[1747642927321,4.13533383,2418.2,2417.6,4.13618093]
[1747642927641,1.0,2418.4,2417.7,9.592]
[1747642927846,1.0,2418.4,2417.9,4.13582033]
[1747642928154,1.0,2418.4,2417.8,0.7863]
[1747642928359,1.0,2418.4,2417.8,2.15014845]
[1747642928538,1.0,2418.4,2418.3,4.13513625]
[1747642928732,1.0,2418.4,2418.3,5.51948056]
[1747642929060,0.05,2418.9,2418.3,5.51948056]
[1747642929061,0.05,2418.9,2418.8,12.97758146]
[1747642929359,0.05,2418.9,2418.8,51.8447817]
[1747642929574,0.05,2418.9,2418.8,43.2947817]
[1747642929734,0.005,2419.6,2419.4,4.13312067]
[1747642929922,0.005,2419.6,2419.0,0.2933]
[1747642930121,0.005,2419.6,2419.1,9.591]
[1747642930317,0.005,2419.6,2419.1,10.73772685]
[1747642930575,0.005,2419.6,2419.3,4.13334162]
[1747642930969,0.005,2419.6,2419.2,4.13358933]
[1747642930970,0.005,2419.6,2419.4,9.591]
[1747642931753,0.005,2419.6,2419.5,4.13308534]
[1747642931970,0.005,2419.6,2419.5,5.47608534]
[1747642932135,0.005,2419.6,2419.5,7.43742768]
[1747642932464,0.005,2419.6,2419.5,7.39610697]
[1747642932618,0.05,2419.9,2419.6,13.49881453]
[1747642932820,0.05,2419.9,2419.8,13.49847293]
[1747642933043,0.05,2420.9,2420.8,4.13086582]
[1747642933250,0.05,2420.9,2420.8,0.85720052]
[1747642933430,0.05,2420.9,2420.8,20.1559]
[1747642933631,0.05,2420.9,2420.8,0.8159]
[1747642933847,0.05,2420.9,2420.7,17.858]
[1747642933848,4.13086582,2420.8,2420.7,27.446]
[1747642934057,0.88031081,2420.8,2420.3,9.588]
[1747642934262,0.05,2420.9,2420.3,9.588]
[1747642934480,4.13086582,2420.8,2420.3,9.588]
[1747642934984,4.13087323,2420.8,2420.3,9.588]
[1747642935139,4.13114583,2420.7,2420.3,9.588]
[1747642935472,4.13090362,2420.8,2420.3,9.588]
[1747642935629,4.18071894,2420.9,2420.3,9.588]
[1747642935630,0.05,2420.9,2420.3,9.588]
[1747642935831,0.05,2420.9,2420.7,4.13101049]
[1747642936035,0.05,2420.9,2420.3,10.17855367]
[1747642936552,0.05,2420.9,2420.0,1.3659]
[1747642936553,4.13086582,2420.8,2420.0,10.4009]
[1747642936867,4.13155954,2420.4,2420.0,10.4009]
[1747642937077,4.18072319,2420.9,2419.7,9.585]
[1747642937078,4.13214255,2420.1,2419.7,9.585]
[1747642937246,4.54541277,2420.1,2419.7,9.585]
[1747642937427,3.74013484,2420.5,2419.2,18.6405]
[1747642937747,4.13266361,2419.8,2419.2,32.35908029]
[1747642938173,4.1317192,2420.3,2419.7,4.13264948]
[1747642938530,4.1315485,2420.4,2419.7,4.13265197]
[1747642938764,4.13160633,2420.4,2419.7,4.13265197]
[1747642939071,0.8295,2420.5,2419.6,13.85281549]
[1747642939258,0.8295,2420.5,2419.2,32.35896381]
[1747642939259,4.13230884,2420.0,2419.7,19.292]
[1747642939561,4.13254223,2419.9,2419.4,9.584]
[1747642939768,4.13196956,2420.2,2419.4,9.584]
[1747642940063,3.74013484,2420.2,2419.3,19.287]
[1747642940269,4.13269938,2419.8,2419.3,13.71739912]
[1747642940434,4.13269938,2419.8,2419.3,9.584]
[1747642940636,4.13277139,2419.7,2419.3,9.584]
[1747642941172,4.13320201,2419.5,2419.0,4.13392469]
[1747642941473,4.13306986,2419.6,2419.0,4.1338501]
[1747642941764,4.13306986,2419.6,2418.9,23.41007365]
[1747642941765,4.13306986,2419.6,2419.1,4.13375833]
[1747642942338,4.64454357,2419.6,2418.5,28.2157]
[1747642942538,8.77745944,2419.6,2418.5,27.433]
[1747642942742,0.90440873,2419.6,2418.5,27.433]
[1747642942968,4.13299691,2419.6,2419.1,4.13372861]
[1747642943157,4.13350152,2419.3,2418.8,4.13423986]
[1747642943352,0.7784,2419.7,2418.9,4.13408293]
[1747642943775,0.7784,2419.7,2418.7,4.91715239]
[1747642943972,0.7784,2419.7,2419.0,4.13380858]
[1747642944152,0.7784,2419.7,2418.7,4.91715239]
[1747642944153,4.133028,2419.6,2419.1,4.13375274]
[1747642944678,4.13293526,2419.6,2419.1,4.13365281]
[1747642945243,31.26113484,2420.1,2419.0,13.71692887]
[1747642945244,19.653,2420.5,2419.2,0.04133173]
[1747642945550,4.13120713,2420.6,2420.0,4.13211391]
[1747642945760,4.13120713,2420.6,2420.1,4.1320082]
[1747642946378,4.13104094,2420.7,2420.2,4.13175448]
[1747642946576,4.13121233,2420.6,2420.1,4.13195288]
[1747642946891,0.05,2420.9,2420.2,9.7033128]
[1747642947048,0.05,2420.9,2420.3,9.583]
[1747642947243,0.05,2420.9,2420.5,4.1313474]
[1747642947444,0.05,2420.9,2420.6,4.13110463]
[1747642948257,0.8314,2420.8,2420.0,9.582]
[1747642948467,4.13211388,2420.1,2419.7,0.8174]
[1747642948670,4.1315485,2420.4,2419.7,2.83290956]
[1747642948867,4.13230078,2420.0,2419.6,9.582]
[1747642949176,4.13249331,2419.9,2419.6,9.582]
[1747642949364,4.13233134,2420.0,2419.6,9.582]
[1747642949568,3.74013484,2420.1,2419.5,0.2825385]
[1747642949772,4.13291453,2419.6,2419.5,0.2825385]
[1747642949973,4.13283253,2419.7,2419.5,0.2825385]
[1747642950348,4.13247054,2419.9,2419.5,0.2825385]
[1747642950349,4.13291453,2419.6,2419.5,0.2825385]
[1747642950884,4.91831453,2419.6,2419.5,0.2825385]
[1747642951084,4.1324922,2419.9,2419.5,0.2825385]
[1747642951385,4.13231923,2420.0,2419.5,4.41553719]
[1747642951588,4.13241055,2419.9,2419.5,0.2825385]
[1747642952484,4.13231937,2420.0,2419.5,4.41560965]
[1747642952956,4.13231937,2420.0,2419.5,4.13307115]
[1747642953352,0.7854,2420.1,2419.7,4.13268728]
[1747642953585,4.13176924,2420.3,2419.9,4.13238911]
[1747642953895,4.13176924,2420.3,2419.8,4.13250147]
[1747642954190,4.13261561,2419.8,2419.4,9.634]
[1747642954557,0.7634,2420.5,2419.0,5.1636]
[1747642954756,0.8688,2420.9,2419.9,0.55]
[1747642955052,0.05,2420.9,2420.0,17.846]
[1747642955258,4.13110224,2420.7,2420.2,4.13184759]
[1747642955564,0.05,2420.9,2420.4,4.13139406]
[1747642955873,4.18076787,2420.9,2420.4,4.13139406]
[1747642956185,4.13098418,2420.8,2420.2,1.74982169]
[1747642956386,0.05,2420.9,2420.2,1.74982169]
[1747642956587,4.13105418,2420.7,2420.3,13.76569567]
[1747642956785,4.18084162,2420.9,2420.4,4.13142158]
[1747642957191,4.18084162,2420.9,2420.3,13.76569328]
[1747642957192,0.05,2420.9,2420.8,4.13086582]
[1747642957394,0.05,2420.9,2420.7,4.13101478]
[1747642957561,0.05,2420.9,2420.7,4.13102361]
[1747642958991,0.05,2420.9,2420.8,4.13086582]
[1747642959195,0.05,2420.9,2420.8,0.82618832]
[1747642959492,4.94449519,2420.9,2420.8,0.2278554]
[1747642960294,4.13110241,2420.7,2420.4,0.2825385]
[1747642960794,4.13130691,2420.6,2420.4,0.2825385]
[1747642961292,4.13110976,2420.7,2420.4,0.2825385]
[1747642961792,4.13110976,2420.7,2420.2,4.13179131]
[1747642961979,4.13096026,2420.8,2420.3,4.1317112]
[1747642962165,4.13105311,2420.7,2420.3,4.1317112]
[1747642962565,0.05,2420.9,2420.7,4.13100591]
[1747642962767,0.05,2420.9,2420.4,4.13147123]
[1747642963062,4.13115194,2420.7,2420.2,13.76287004]
[1747642963599,4.13122967,2420.6,2420.2,9.631]
[1747642963800,4.13113166,2420.7,2420.2,13.76288369]
[1747642963995,4.13098343,2420.8,2420.3,4.13168278]
[1747642964167,4.13106477,2420.7,2420.2,4.13178942]
[1747642964376,4.13106477,2420.7,2419.9,0.2825385]
[1747642964377,4.13198231,2420.2,2419.9,0.2825385]
[1747642964709,4.1322314,2420.0,2419.9,0.2825385]
[1747642964869,4.1322314,2420.0,2419.9,0.22835143]
[1747642965613,4.95562719,2420.1,2419.9,0.22835143]
[1747642965806,4.13212719,2420.1,2419.9,0.22835143]
[1747642965972,4.13207577,2420.1,2419.9,0.22835143]
[1747642966516,4.13253279,2419.9,2419.5,0.2825385]
[1747642966717,4.13253279,2419.9,2419.5,4.41562083]
[1747642966881,4.1323114,2420.0,2419.5,0.2825385]
[1747642967202,4.1322332,2420.0,2419.6,4.13283012]
[1747642967409,4.1322332,2420.0,2419.5,4.41552395]
[1747642968096,0.761,2420.1,2419.5,3.1390039]
[1747642968297,0.7733,2420.4,2419.6,0.26971835]
[1747642968467,4.13131749,2420.6,2420.1,4.13203816]
[1747642968924,0.34609489,2420.5,2420.1,4.13203816]
[1747642969215,0.34609489,2420.5,2419.9,4.13226346]
[1747642969216,0.34609489,2420.5,2419.8,19.207]
[1747642969418,0.34609489,2420.5,2420.4,4.1315485]
[1747642969574,0.34609489,2420.5,2420.3,4.13164722]
[1747642969920,0.34609489,2420.5,2420.0,4.13216383]
[1747642970074,0.34609489,2420.5,2420.1,4.13205044]
[1747642970492,4.13128658,2420.6,2420.1,4.13205044]
[1747642970811,4.13130422,2420.6,2420.1,4.13203144]
[1747642971008,4.13139575,2420.5,2420.1,4.13203144]
[1747642971198,0.82627,2420.5,2419.8,9.632]
[1747642971505,4.13165744,2420.4,2419.9,4.13235262]
[1747642971707,4.13186081,2420.3,2419.9,0.22832961]
[1747642972113,0.05,2420.9,2420.0,0.04132071]
[1747642972275,4.13111058,2420.7,2420.2,4.13180633]
[1747642972479,4.52686153,2420.9,2420.3,4.13162885]
[1747642972702,4.13093816,2420.8,2420.3,4.13162885]
[1747642973012,0.39609489,2420.9,2420.5,4.13137781]
[1747642973215,0.39609489,2420.9,2420.6,4.17237745]
[1747642973512,0.39609489,2420.9,2420.8,4.13086582]
[1747642974015,0.39609489,2420.9,2420.7,4.9406193]
[1747642974180,0.05,2420.9,2420.7,4.9406193]
[1747642974380,0.05,2420.9,2420.8,4.13086582]
[1747642974904,0.05,2420.9,2420.7,14.43272083]
[1747642975110,0.05,2420.9,2420.3,0.8097]
[1747642975307,0.05,2420.9,2420.5,4.13127683]
[1747642975501,0.05,2420.9,2420.5,4.13130202]
[1747642975707,4.13088679,2420.8,2420.4,23.52801541]
[1747642976003,4.13125242,2420.6,2420.4,0.2825385]
[1747642976192,4.18073239,2420.9,2420.4,0.2825385]
[1747642976391,0.05,2420.9,2420.4,4.41407728]
[1747642976605,4.13095913,2420.8,2420.4,0.2825385]
[1747642976780,4.13104765,2420.7,2420.4,0.2825385]
[1747642976973,4.13131879,2420.6,2420.4,0.2825385]
[1747642977685,4.13137781,2420.5,2420.2,0.60507199]
[1747642977882,4.9369192,2420.3,2420.2,0.60507199]
[1747642978178,6.63092111,2420.3,2420.2,0.60507199]
[1747642979419,6.63092111,2420.3,2419.4,4.13324196]
[1747642979420,4.13253626,2419.9,2419.4,4.36157345]
[1747642979627,16.26192111,2420.3,2419.4,4.36157345]
[1747642979789,6.63103168,2420.3,2419.8,4.13254894]
[1747642979989,4.13124093,2420.6,2419.9,0.0413259]
[1747642980196,4.13164992,2420.4,2419.7,14.57333977]
[1747642980518,4.13180952,2420.3,2419.8,4.13249157]
[1747642981088,8.65587514,2420.7,2419.7,14.57338202]
[1747642981089,4.13200133,2420.2,2419.7,14.57338202]
[1747642981288,3.74013484,2420.4,2419.7,0.8097]
[1747642981509,4.13202876,2420.2,2419.7,4.13272303]
[1747642981719,0.7847,2420.7,2419.8,0.04132258]
[1747642981927,0.34609489,2420.6,2420.2,4.13180537]
[1747642982128,0.34609489,2420.6,2420.4,4.13147204]
[1747642982314,4.47731146,2420.6,2420.2,4.13187219]
[1747642982522,0.34609489,2420.6,2420.1,9.632]
[1747642982732,0.34609489,2420.6,2420.3,4.13163073]
[1747642983031,0.34609489,2420.6,2420.4,4.1313924]
[1747642983398,4.18070594,2420.9,2420.4,4.1313924]
[1747642983590,4.18069527,2420.9,2420.4,4.13145879]
[1747642984390,4.13103647,2420.7,2420.2,4.1318376]
[1747642984591,0.83119023,2420.7,2420.1,4.13201289]
[1747642984823,0.05,2420.9,2420.2,4.13187932]
[1747642985024,4.13110726,2420.7,2419.9,18.928]
[1747642985329,4.13110726,2420.7,2420.3,4.131715]
[1747642985512,4.13090468,2420.8,2420.2,4.1317874]
[1747642985710,4.13151081,2420.5,2420.0,4.13215922]
[1747642985917,4.56640972,2420.5,2419.7,0.7621]
[1747642986124,4.56640972,2420.5,2419.4,0.3767405]
[1747642986125,4.13215189,2420.1,2419.6,4.13276281]
[1747642986302,4.13263431,2419.8,2419.5,0.3767405]
[1747642986503,0.7953,2419.8,2419.5,0.3767405]
[1747642986707,4.13213801,2420.1,2419.6,4.1328378]
[1747642986891,4.13223555,2420.0,2419.6,4.1328378]